[Event "ESTCC U50 2018"]
[Site "Walbrzych"]
[Date "2018.04.17"]
[Round "4"]
[White "Ograbek, Grzegorz"]
[Black "Kivimaki, Jaakko"]
[Result "1-0"]
[ECO "D24"]
[WhiteElo "2140"]
[BlackElo "2181"]
[Annotator "NA"]
[PlyCount "61"]
[EventDate "2018.??.??"]
[EventCountry "POL"]
[SourceTitle "playchess.com"]
[Source "ChessBase"]
[SourceQuality "1"]
[WhiteTeam "Poland"]
[BlackTeam "Finland"]
[WhiteTeamCountry "POL"]
[BlackTeamCountry "FIN"]
[TimeControl "40/5400+30:1800+30"]

1. d4 {[%emt 0:00:00]} d5 {[%emt 0:00:07]} 2. c4 {[%emt 0:00:05]} dxc4 {[%emt 0:00:05]} 3. Nf3 {[%emt 0:00:38]} Nf6 {[%emt 0:00:27]} 4. Nc3 {[%emt 0:00:24]} a6 $11 {[%emt 0:00:57] LiveBook: 767 Games} 5. e4 {[%emt 0:00:33]} e6 {[%emt 0:04:35]} 6. Bxc4 {[%emt 0:03:38]} c5 {[%emt 0:01:25]} 7. O-O {[%emt 0:42:09]} b5 {[%emt 0:08:45]} 8. Bd3 {[%emt 0:02:01]} cxd4 {[%emt 0:08:20]} 9. Nxd4 {[%emt 0:04:34]} Bc5 {[%emt 0:02:41]} 10. Nb3 {[%emt 0:00:32]} Bb4 {[%emt 0:02:28]} 11. e5 {[%emt 0:26:05]} Bxc3 {[%emt 0:05:47]} 12. bxc3 {[%emt 0:00:06]} Nd5 {[%emt 0:05:08]} 13. Qg4 {[%emt 0:05:35]} g6 {[%emt 0:10:50]} 14. Bg5 {[%emt 0:04:53]} f5 {[%emt 0:02:38]} 15. exf6 {[%emt 0:00:46]} Kf7 {[%emt 0:01:21]} 16. c4 {[%emt 0:02:53]} bxc4 {[%emt 0:04:45]} 17. Bxc4 {[%emt 0:00:03]} Nc6 {[%emt 0:00:01]} 18. Rfe1 {[%emt 0:00:40]} Re8 {[%emt 0:08:08]} 19. Rad1 {[%emt 0:01:40]} Ra7 {[%emt 0:00:33]} 20. Qf3 {[%emt 0:01:55]} Rd7 {[%emt 0:01:48]} 21. Nc5 {[%emt 0:00:07]} Rd6 {[%emt 0:00:08]} 22. Ne4 {[%emt 0:00:41]} Rd7 {[%emt 0:01:46]} 23. Bh6 {[%emt 0:00:01]} Kg8 {[%emt 0:03:27]} 24. Nd6 {[%emt 0:00:14]} Ne5 {[%emt 0:02:39]} 25. Rxe5 {[%emt 0:00:17]} Nxf6 {[%emt 0:00:00]} 26. Bg5 {[%emt 0:00:48]} Rxd6 {[%emt 0:00:41]} 27. Rxd6 {[%emt 0:00:43]} Qxd6 {[%emt 0:00:06]} 28. Bxf6 {[%emt 0:00:17]} Rf8 {[%emt 0:01:36]} 29. Re1 {[%emt 0:00:05]} Qb4 {[%emt 0:02:42]} 30. Qc3 {[%emt 0:00:12]} Qb6 {[%emt 0:00:21]} 31. Bd4 {[%emt 0:00:29]} 1-0

[Event "ESTCC U50 2018"]
[Site "Walbrzych"]
[Date "2018.04.17"]
[Round "4"]
[White "Laszewicz, Pawel"]
[Black "Lewis, Andrew P"]
[Result "0-1"]
[ECO "B47"]
[WhiteElo "2110"]
[BlackElo "2279"]
[Annotator "NA"]
[PlyCount "59"]
[EventDate "2018.??.??"]
[EventCountry "POL"]
[SourceTitle "playchess.com"]
[Source "ChessBase"]
[SourceQuality "1"]
[WhiteTeam "Poland"]
[BlackTeam "England"]
[WhiteTeamCountry "POL"]
[BlackTeamCountry "ENG"]
[TimeControl "40/5400+30:1800+30"]

1. e4 c5 2. Nf3 Nc6 3. d4 cxd4 4. Nxd4 e6 5. Nc3 Qc7 6. Nxc6 {LiveBook: 167 Games} bxc6 7. Bd3 Nf6 8. O-O Be7 9. f4 d5 10. Kh1 g6 11. Qf3 O-O 12. exd5 cxd5 13. Bd2 Rb8 14. f5 $15 Rxb2 15. Nb5 Rxb5 16. Bxb5 exf5 17. Qc3 Qb8 18. Rab1 Ne4 19. Qd3 Bd6 20. g3 Qc7 21. Be3 d4 22. Bxd4 Bb7 23. Kg1 Ng5 24. Rfe1 Nf3+ 25. Kf1 Nxh2+ 26. Ke2 Nf3 27. Bc4 Be4 28. Qc3 Nxd4+ 29. Qxd4 Be5 30. Ra1 0-1

[Event "ESTCC U50 2018"]
[Site "Walbrzych"]
[Date "2018.04.17"]
[Round "4"]
[White "Lopez de Turiso, Jose Angel"]
[Black "Giulian, Rosemary A"]
[Result "1/2-1/2"]
[ECO "E30"]
[WhiteElo "2064"]
[BlackElo "1880"]
[Annotator "NA"]
[PlyCount "60"]
[EventDate "2018.??.??"]
[EventCountry "POL"]
[SourceTitle "playchess.com"]
[Source "ChessBase"]
[SourceQuality "1"]
[WhiteTeam "Spain"]
[BlackTeam "Scotland"]
[WhiteTeamCountry "ESP"]
[BlackTeamCountry "SCO"]
[TimeControl "40/5400+30:1800+30"]

1. d4 e6 2. c4 Nf6 3. Nc3 Bb4 4. Bg5 h6 5. Bh4 O-O 6. e3 b6 7. Be2 Bb7 8. Bf3 Bxc3+ 9. bxc3 d5 10. Bxf6 Qxf6 11. cxd5 exd5 12. Ne2 c6 13. O-O Ba6 14. Qc2 Nd7 15. a4 Bc4 16. Rfe1 Rad8 $14 17. Ng3 g6 18. Be2 Bxe2 19. Rxe2 Rfe8 20. c4 dxc4 21. Qxc4 c5 22. Rd1 Ne5 23. Qc2 cxd4 24. exd4 Qc6 25. Qb3 Qc4 26. Qxc4 Nxc4 27. Ne4 Kg7 28. f3 f5 29. Nc3 Rxe2 30. Nxe2 a6 1/2-1/2

[Event "ESTCC U50 2018"]
[Site "Walbrzych"]
[Date "2018.04.17"]
[Round "4"]
[White "Van de Wynkele, Herman"]
[Black "Nuenchert, Eveline"]
[Result "1-0"]
[ECO "B41"]
[WhiteElo "2048"]
[BlackElo "2033"]
[Annotator "NA"]
[PlyCount "79"]
[EventDate "2018.??.??"]
[EventCountry "POL"]
[SourceTitle "playchess.com"]
[Source "ChessBase"]
[SourceQuality "1"]
[WhiteTeam "Belgium"]
[BlackTeam "Germany"]
[WhiteTeamCountry "BEL"]
[BlackTeamCountry "GER"]
[TimeControl "40/5400+30:1800+30"]

1. e4 {[%emt 0:00:00]} c5 {[%emt 0:00:33]} 2. Nf3 {[%emt 0:00:00]} e6 {[%emt 0:00:05]} 3. d4 {[%emt 0:00:42]} cxd4 {[%emt 0:00:08]} 4. Nxd4 {[%emt 0:00:05]} a6 {[%emt 0:00:07]} 5. c4 {[%emt 0:00:57]} Nf6 {[%emt 0:00:31]} 6. Nc3 {[%emt 0:00:27]} Qc7 {[%emt 0:00:45]} 7. Bd3 {[%emt 0:01:52]} Be7 {[%emt 0:02:39]} 8. O-O {[%emt 0:00:52]} d6 {[%emt 0:01:21]} 9. Be3 {[%emt 0:00:58]} O-O {[%emt 0:04:33]} 10. Rc1 {[%emt 0:00:16]} Nc6 {[%emt 0:04:59] B42: Sicilian: Kan Variation: 5 Bd3} (10... Nbd7 11. f4 Re8 12. g4 Nc5 13. Bb1 e5 14. Nf5 Bxf5 15. exf5 exf4 16. Bd4 h6 17. h4 Nh7 18. Nd5 {½-½ (39) Karjakin,S (2723)-Timofeev,A (2651) Khanty-Mansiysk 2009}) 11. Qe2 {[%emt 0:00:35]} Nxd4 {[%emt 0:11:08]} 12. Bxd4 {[%emt 0:00:18]} e5 {[%emt 0:00:07]} 13. Be3 Bd7 $146 ({Predecessor:} 13... Be6 14. f3 Rac8 15. b3 Qa5 16. Qb2 Rc7 17. Rf2 Nd7 18. Nd5 Bxd5 19. cxd5 Nc5 20. Bf1 {1-0 (20) Martinez Ival,C (2083)-Silva Mazorra,P (1983) Havana 2009}) 14. h3 {[%emt 0:09:43]} Bc6 {[%emt 0:05:15]} 15. b4 {[%emt 0:05:15]} Qd8 {[%emt 0:07:41]} 16. a4 {[%emt 0:11:51]} b6 {[%emt 0:04:09]} 17. Qc2 {[%emt 0:24:38]} Rc8 {[%emt 0:07:04]} 18. Rfd1 {[%emt 0:01:12]} Bb7 {[%emt 0:13:38]} 19. Qb1 {[%emt 0:06:55]} Nd7 $16 {[%emt 0:06:03]} 20. a5 {[%emt 0:06:14]} Bg5 {[%emt 0:02:34]} 21. Bxg5 {[%emt 0:02:44]} Qxg5 {[%emt 0:00:11]} 22. axb6 {[%emt 0:00:37]} f5 {[%emt 0:00:39]} 23. Nd5 {[%emt 0:02:57]} Bxd5 {[%emt 0:04:40]} 24. cxd5 {[%emt 0:01:12]} Nxb6 {[%emt 0:00:41]} 25. Bxa6 {[%emt 0:02:26]} Rxc1 {[%emt 0:00:32]} 26. Qxc1 {[%emt 0:00:15]} Qh5 {[%emt 0:01:39]} 27. Rf1 {[%emt 0:03:12]} Qe8 {[%emt 0:02:24]} 28. Qc6 {[%emt 0:03:27]} Qb8 {[%emt 0:00:14]} 29. exf5 {[%emt 0:00:20]} Rxf5 {[%emt 0:00:42]} 30. Rc1 {[%emt 0:00:46]} Rf7 {[%emt 0:01:13]} 31. Qb5 {[%emt 0:00:38]} Qa7 {[%emt 0:01:11]} 32. Rc6 Nd7 {[%emt 0:00:31]} 33. Qe2 {[%emt 0:08:19]} g6 {[%emt 0:02:10]} 34. Bc8 {[%emt 0:01:05]} Qb8 {[%emt 0:00:50]} 35. Bxd7 {[%emt 0:01:15]} Rxd7 {[%emt 0:00:03]} 36. Qg4 {[%emt 0:00:50]} Qe8 {[%emt 0:07:55]} 37. b5 {[%emt 0:00:26]} Kg7 {[%emt 0:03:01]} 38. b6 {[%emt 0:00:17]} Rf7 {[%emt 0:00:41]} 39. Rc7 {[%emt 0:00:42]} Qb5 {[%emt 0:01:12]} 40. Qe6 1-0

[Event "ESTCC U50 2018"]
[Site "Walbrzych"]
[Date "2018.04.17"]
[Round "4"]
[White "Robertson, Ian C"]
[Black "Pastor Alonso De Prado, Alberto"]
[Result "1/2-1/2"]
[ECO "C26"]
[WhiteElo "2038"]
[BlackElo "2162"]
[Annotator "NA"]
[PlyCount "64"]
[EventDate "2018.??.??"]
[EventCountry "POL"]
[SourceTitle "playchess.com"]
[Source "ChessBase"]
[SourceQuality "1"]
[WhiteTeam "Scotland"]
[BlackTeam "Spain"]
[WhiteTeamCountry "SCO"]
[BlackTeamCountry "ESP"]
[TimeControl "40/5400+30:1800+30"]

1. e4 {[%emt 0:00:00]} e5 {[%emt 0:02:12]} 2. Nc3 {[%emt 0:00:22]} Nf6 {[%emt 0:00:09]} 3. g3 {[%emt 0:00:42]} Bb4 {[%emt 0:01:40]} 4. Bg2 {[%emt 0:01:57]} c6 {[%emt 0:03:04] C26: Vienna Game: 2...Nf6, sidelines} (4... Bxc3 5. bxc3 d6 6. d3 Nc6 7. Nf3 h6 8. O-O Bg4 9. h3 Be6 10. c4 Qd7 11. Kh2 g5 12. Ng1 {1-0 (82) Pridorozhni,A (2565)-Predke,A (2601) Sochi 2017}) 5. d3 {[%emt 0:13:06]} d5 {[%emt 0:07:50]} 6. Bd2 {[%emt 0:00:42]} O-O {[%emt 0:07:28]} 7. Nge2 {[%emt 0:02:16]} dxe4 {[%emt 0:02:27]} 8. Nxe4 {[%emt 0:05:05]} Nxe4 {[%emt 0:00:33]} 9. dxe4 $146 {[%emt 0:00:25]} ({Predecessor:} 9. Bxe4 Bc5 10. O-O Bh3 11. Bg2 Bxg2 12. Kxg2 {0-1 (36) Schulz,L (1886)-Yankelevich,L (2180) Naumburg 2012}) 9... Bc5 {[%emt 0:02:55]} 10. Bc3 {[%emt 0:13:02]} f6 {[%emt 0:06:49]} 11. Qxd8 {[%emt 0:03:43]} Rxd8 {[%emt 0:00:09]} 12. Nc1 {[%emt 0:00:11]} Na6 {[%emt 0:02:53]} 13. Nd3 {[%emt 0:00:42]} Bd4 {[%emt 0:04:03]} 14. Bxd4 {[%emt 0:02:28]} Rxd4 {[%emt 0:00:15]} 15. O-O-O {[%emt 0:05:15]} Bg4 {[%emt 0:04:53]} 16. f3 {[%emt 0:05:58]} Be6 {[%emt 0:00:05]} 17. b3 {[%emt 0:03:04]} Rad8 {[%emt 0:01:20]} 18. Nf2 {[%emt 0:02:03]} c5 {[%emt 0:00:46]} 19. c3 {[%emt 0:00:33]} Rxd1+ {[%emt 0:01:47]} 20. Rxd1 {[%emt 0:00:11]} Rxd1+ $11 {[%emt 0:00:04]} 21. Nxd1 {[%emt 0:00:28]} Kf7 {[%emt 0:04:03]} 22. Ne3 {[%emt 0:01:58]} g6 {[%emt 0:00:51]} 23. Bf1 {[%emt 0:05:22]} Nc7 {[%emt 0:00:09]} 24. Bd3 {[%emt 0:00:16]} Ne8 {[%emt 0:04:09]} 25. Bc4 {[%emt 0:06:37]} Bxc4 {[%emt 0:03:23]} 26. Nxc4 {[%emt 0:00:08]} Ke6 {[%emt 0:00:09]} 27. Kd2 {[%emt 0:01:15]} f5 {[%emt 0:01:42]} 28. Ke3 {[%emt 0:05:23]} b6 {[%emt 0:04:39]} 29. Kd3 {[%emt 0:06:02]} f4 {[%emt 0:01:01]} 30. g4 {[%emt 0:06:08]} h5 {[%emt 0:09:06]} 31. gxh5 {[%emt 0:02:00]} gxh5 {[%emt 0:00:10]} 32. Ke2 {[%emt 0:00:08]} Nd6 1/2-1/2

[Event "ESTCC U50 2018"]
[Site "Walbrzych"]
[Date "2018.04.17"]
[Round "4"]
[White "Strzelecki, Jerzy"]
[Black "Salonen, Jyrki"]
[Result "1-0"]
[ECO "A21"]
[WhiteElo "2038"]
[BlackElo "2159"]
[Annotator "NA"]
[PlyCount "83"]
[EventDate "2018.??.??"]
[EventCountry "POL"]
[SourceTitle "playchess.com"]
[Source "ChessBase"]
[SourceQuality "1"]
[WhiteTeam "Poland"]
[BlackTeam "Finland"]
[WhiteTeamCountry "POL"]
[BlackTeamCountry "FIN"]
[TimeControl "40/5400+30:1800+30"]

1. Nf3 d6 2. c4 e5 3. Nc3 g6 4. g3 Bg7 5. Bg2 c5 6. O-O Nc6 7. Ne1 Be6 8. d3 Nge7 9. Nd5 O-O 10. Nc2 {A37: Symmetrical English vs ...g6: 4 Bg2 Bg7 5 Nf3} Qd7 11. Bd2 Bh3 12. e4 Bxg2 13. Kxg2 {[#]} Nxd5 $146 ({Predecessor:} 13... f5 14. f3 Rf7 15. Bg5 Nxd5 16. exd5 Nb8 17. Qd2 Qe8 {½-½ (42) Ftacnik,L (2544)-Mista,A (2562) Czechia 2013}) 14. cxd5 Nd4 15. Nxd4 exd4 16. a4 b6 17. b3 f5 18. f3 Rf7 19. Qe2 Re8 20. Rae1 a6 21. Qd1 b5 22. Qc2 fxe4 $11 23. fxe4 Rxf1 24. Rxf1 h5 25. h3 Be5 26. Bf4 Qe7 27. Qe2 Kg7 28. axb5 axb5 29. Qf3 Kg8 30. Bxe5 dxe5 31. Qf6 Qg7 32. Qc6 Rf8 33. Rxf8+ Kxf8 34. Qxc5+ Qe7 35. d6 Qg5 36. d7+ Kg7 37. h4 Qd2+ 38. Kh3 Qd1 39. Qxe5+ Kh7 40. Qe7+ Kh6 41. Qf8+ Kh7 42. Kg2 1-0

[Event "ESTCC U50 2018"]
[Site "Walbrzych"]
[Date "2018.04.17"]
[Round "4"]
[White "Reuben, Stewart"]
[Black "Kowalczuk, Wojciech"]
[Result "0-1"]
[ECO "A16"]
[WhiteElo "2026"]
[BlackElo "2049"]
[Annotator "NA"]
[PlyCount "110"]
[EventDate "2018.??.??"]
[EventCountry "POL"]
[SourceTitle "playchess.com"]
[Source "ChessBase"]
[SourceQuality "1"]
[WhiteTeam "England"]
[BlackTeam "Poland"]
[WhiteTeamCountry "ENG"]
[BlackTeamCountry "POL"]
[TimeControl "40/5400+30:1800+30"]

1. c4 {[%emt 0:00:00]} Nf6 {[%emt 0:03:49]} 2. Nc3 {[%emt 0:00:00]} d5 {[%emt 0:00:51]} 3. cxd5 {[%emt 0:00:58]} Nxd5 {[%emt 0:00:03]} 4. g3 {[%emt 0:00:43]} e6 {[%emt 0:01:20]} 5. Bg2 {[%emt 0:00:26]} Be7 {[%emt 0:02:33]} 6. d4 {[%emt 0:05:20]} c6 {[%emt 0:06:09]} 7. e4 {[%emt 0:02:20]} Nf6 {[%emt 0:00:24]} 8. Nge2 {[%emt 0:00:50]} O-O {[%emt 0:00:32]} 9. O-O {[%emt 0:01:31]} Nbd7 {[%emt 0:02:49]} 10. f4 {[%emt 0:06:02]} b5 {[%emt 0:09:48]} 11. f5 {[%emt 0:06:17]} e5 {[%emt 0:00:24]} 12. Kh1 {[%emt 0:11:34]} b4 {[%emt 0:12:26]} 13. Na4 {[%emt 0:01:03]} Ba6 {[%emt 0:07:59]} 14. Be3 {[%emt 0:02:29]} Qa5 {[%emt 0:01:47]} 15. Re1 {[%emt 0:06:01]} Bb5 {[%emt 0:05:41]} 16. b3 {[%emt 0:08:23]} Bxa4 $17 {[%emt 0:03:51]} 17. bxa4 {[%emt 0:02:04]} Rfd8 {[%emt 0:00:36]} 18. Rc1 {[%emt 0:11:20]} Rac8 {[%emt 0:04:07]} 19. d5 {[%emt 0:08:44]} c5 {[%emt 0:13:00]} 20. Qb3 {[%emt 0:10:41]} Nb6 {[%emt 0:01:15]} 21. a3 {[%emt 0:00:42]} bxa3 {[%emt 0:08:39]} 22. Qxa3 {[%emt 0:00:42]} Rd7 {[%emt 0:00:52]} 23. Qb2 {[%emt 0:03:19]} Ng4 {[%emt 0:03:34]} 24. Bd2 {[%emt 0:00:29]} Qxa4 {[%emt 0:02:06]} 25. Ra1 {[%emt 0:00:55]} Qc4 {[%emt 0:00:16]} 26. Rac1 {[%emt 0:00:49]} Nf2+ {[%emt 0:00:57]} 27. Kg1 {[%emt 0:00:12]} Nd3 {[%emt 0:00:10]} 28. Rxc4 {[%emt 0:02:11]} Nxb2 {[%emt 0:00:12]} 29. Rc2 {[%emt 0:01:01]} N2c4 {[%emt 0:03:24]} 30. Bc3 {[%emt 0:02:58]} Ne3 {[%emt 0:01:28]} 31. Ra2 {[%emt 0:00:13]} Nxg2 {[%emt 0:00:16]} 32. Kxg2 {[%emt 0:00:02]} f6 {[%emt 0:00:25]} 33. Rea1 {[%emt 0:00:25]} Ra8 {[%emt 0:01:16]} 34. Ra6 {[%emt 0:00:54]} Nc8 {[%emt 0:01:12]} 35. Ba5 {[%emt 0:02:49]} Rb7 {[%emt 0:02:25]} 36. Rc6 {[%emt 0:00:40]} Nd6 {[%emt 0:00:52]} 37. Nc3 {[%emt 0:01:57]} Rc8 {[%emt 0:00:05]} 38. Rxc8+ {[%emt 0:00:49]} Nxc8 {[%emt 0:00:02]} 39. Rb1 {[%emt 0:00:15]} Rxb1 {[%emt 0:00:34]} 40. Nxb1 {[%emt 0:00:00]} Nd6 {[%emt 0:00:39]} 41. Kf3 {[%emt 0:00:16]} Kf7 {[%emt 0:07:36]} 42. Na3 {[%emt 0:01:06]} c4 {[%emt 0:03:23]} 43. Bb4 {[%emt 0:01:30]} Nxf5 {[%emt 0:02:06]} 44. Bxe7 {[%emt 0:00:29]} Nd4+ {[%emt 0:00:45]} 45. Ke3 {[%emt 0:00:15]} Kxe7 {[%emt 0:00:11]} 46. Nxc4 {[%emt 0:00:11]} Nb5 {[%emt 0:00:28]} 47. Kd3 {[%emt 0:03:07]} Kd7 {[%emt 0:01:10]} 48. Na5 {[%emt 0:07:13]} Kc7 {[%emt 0:01:56]} 49. Nb3 {[%emt 0:08:23]} Kb6 {[%emt 0:00:22]} 50. Nd2 {[%emt 0:00:20]} Kc5 {[%emt 0:00:13]} 51. Nc4 {[%emt 0:00:29]} Nd6 {[%emt 0:08:05]} 52. Na5 {[%emt 0:04:27]} Kb5 {[%emt 0:01:04]} 53. Nc6 {[%emt 0:00:36]} a5 {[%emt 0:00:12]} 54. Ne7 {[%emt 0:00:18]} a4 {[%emt 0:00:31]} 55. Nf5 {[%emt 0:00:16]} Nxf5 {[%emt 0:00:13]} 0-1

[Event "ESTCC U50 2018"]
[Site "Walbrzych"]
[Date "2018.04.17"]
[Round "4"]
[White "Kierzek, Mira"]
[Black "Van Herck, Marcel"]
[Result "1/2-1/2"]
[ECO "E09"]
[WhiteElo "2011"]
[BlackElo "2061"]
[Annotator "NA"]
[PlyCount "41"]
[EventDate "2018.??.??"]
[EventCountry "POL"]
[SourceTitle "playchess.com"]
[Source "ChessBase"]
[SourceQuality "1"]
[WhiteTeam "Germany"]
[BlackTeam "Belgium"]
[WhiteTeamCountry "GER"]
[BlackTeamCountry "BEL"]
[TimeControl "40/5400+30:1800+30"]

1. d4 {[%emt 0:00:00]} Nf6 {[%emt 0:00:46]} 2. c4 {[%emt 0:00:00]} e6 {[%emt 0:00:54]} 3. Nf3 {[%emt 0:01:17]} d5 {[%emt 0:02:16]} 4. g3 {[%emt 0:01:30]} Be7 {[%emt 0:04:23]} 5. Bg2 {[%emt 0:00:14]} O-O {[%emt 0:02:53]} 6. O-O {[%emt 0:00:25]} Nbd7 {[%emt 0:00:34]} 7. Qc2 {[%emt 0:06:55]} c6 {[%emt 0:00:20]} 8. Nbd2 {[%emt 0:00:31]} b6 {[%emt 0:01:05]} 9. e4 {[%emt 0:03:00]} dxe4 {[%emt 0:01:10]} 10. Nxe4 $14 {[%emt 0:00:18] LiveBook: 154 Games} Bb7 {[%emt 0:02:16]} 11. Ne5 {[%emt 0:07:39]} Nxe5 {[%emt 0:04:10]} 12. dxe5 {[%emt 0:02:47]} Nxe4 {[%emt 0:00:06]} 13. Bxe4 {[%emt 0:00:38]} h6 {[%emt 0:00:17]} 14. Be3 {[%emt 0:01:55]} Qc7 {[%emt 0:02:21]} 15. f4 {[%emt 0:01:17]} c5 {[%emt 0:02:43]} 16. Rad1 {[%emt 0:00:58]} Rad8 {[%emt 0:03:25]} 17. b3 {[%emt 0:05:57]} Rxd1 {[%emt 0:12:06]} 18. Rxd1 {[%emt 0:00:15]} Rd8 {[%emt 0:00:11]} 19. Rxd8+ {[%emt 0:09:47]} Bxd8 {[%emt 0:00:09]} 20. Bxb7 {[%emt 0:01:33]} Qxb7 {[%emt 0:00:06]} 21. Qg2 1/2-1/2

[Event "ESTCC U50 2018"]
[Site "Walbrzych"]
[Date "2018.04.17"]
[Round "4"]
[White "Sihvonen, Tero"]
[Black "Czyz, Andrzej"]
[Result "1/2-1/2"]
[ECO "C28"]
[WhiteElo "1988"]
[BlackElo "1999"]
[Annotator "NA"]
[PlyCount "86"]
[EventDate "2018.??.??"]
[EventCountry "POL"]
[SourceTitle "playchess.com"]
[Source "ChessBase"]
[SourceQuality "1"]
[WhiteTeam "Finland"]
[BlackTeam "Poland"]
[WhiteTeamCountry "FIN"]
[BlackTeamCountry "POL"]
[TimeControl "40/5400+30:1800+30"]

1. e4 {[%emt 0:00:00]} e5 {[%emt 0:00:07]} 2. Bc4 {[%emt 0:01:39]} Nf6 {[%emt 0:02:41]} 3. Nc3 {[%emt 0:02:02]} Nc6 {[%emt 0:01:09]} 4. d3 {[%emt 0:01:26]} Bb4 {[%emt 0:00:32]} 5. Bd2 {[%emt 0:12:31]} Bxc3 {[%emt 0:02:36]} 6. bxc3 {[%emt 0:00:49]} d6 {[%emt 0:01:36]} 7. Nf3 {[%emt 0:05:53]} O-O {[%emt 0:01:24]} 8. O-O {[%emt 0:05:22]} Qe7 {[%emt 0:03:33]} 9. Re1 {[%emt 0:01:41]} Bg4 {[%emt 0:03:36]} 10. h3 {[%emt 0:02:07]} Be6 {[%emt 0:03:17]} 11. Bb3 {[%emt 0:02:33]} a5 {[%emt 0:03:57]} 12. a4 {[%emt 0:02:40]} Rfe8 {[%emt 0:02:26]} 13. Qb1 {[%emt 0:00:52]} b6 {[%emt 0:01:32]} 14. Ng5 {[%emt 0:01:37]} Nd8 {[%emt 0:02:39]} 15. Kh2 {[%emt 0:13:47]} h6 {[%emt 0:01:33]} 16. Nxe6 {[%emt 0:00:24]} Nxe6 {[%emt 0:00:34]} 17. Qd1 {[%emt 0:02:27]} Rad8 $11 {[%emt 0:03:40]} 18. Qf3 {[%emt 0:03:16]} Nc5 {[%emt 0:07:35]} 19. Qg3 Kh7 20. Qh4 d5 21. exd5 Nxb3 22. cxb3 Rxd5 23. d4 e4 24. f3 g5 25. Qf2 Qd6+ 26. Qg3 exf3 27. Rxe8 Nxe8 28. gxf3 Qxg3+ 29. Kxg3 Kg6 30. Rd1 Ng7 31. Bc1 c5 32. Bb2 cxd4 33. cxd4 Ne6 34. Rc1 Rd6 35. Rc4 h5 36. h4 f6 37. b4 axb4 38. Rxb4 Ng7 39. hxg5 fxg5 40. Kf2 Ne6 41. Kg3 {[%emt 0:48:09]} Nf4 {[%emt 0:54:03]} 42. Rc4 {[%emt 0:05:14]} Kf5 {[%emt 0:02:11]} 43. Rc2 {[%emt 0:07:17]} Re6 1/2-1/2

[Event "ESTCC U50 2018"]
[Site "Walbrzych"]
[Date "2018.04.17"]
[Round "4"]
[White "Pietinen, Pekka"]
[Black "Roth, Martin"]
[Result "1-0"]
[ECO "B28"]
[WhiteElo "1983"]
[BlackElo "2141"]
[Annotator "NA"]
[PlyCount "121"]
[EventDate "2018.??.??"]
[EventCountry "POL"]
[SourceTitle "playchess.com"]
[Source "ChessBase"]
[SourceQuality "1"]
[WhiteTeam "FIN"]
[BlackTeam "SUI"]
[WhiteTeamCountry "FIN"]
[BlackTeamCountry "GER"]
[TimeControl "40/5400+30:1800+30"]

1. e4 {[%emt 0:00:00]} c5 {[%emt 0:00:02]} 2. Nf3 {[%emt 0:00:02]} a6 {[%emt 0:00:11]} 3. d4 {[%emt 0:00:35]} cxd4 {[%emt 0:00:17]} 4. Nxd4 {[%emt 0:00:09]} Nf6 {[%emt 0:00:16] LiveBook: 203 Games} 5. Bd3 {[%emt 0:02:49]} e5 {[%emt 0:00:10]} 6. Nb3 {[%emt 0:04:12]} d5 {[%emt 0:00:28]} 7. exd5 {[%emt 0:01:32]} Nxd5 {[%emt 0:01:12]} 8. Be4 {[%emt 0:05:36]} Nf6 {[%emt 0:04:55]} 9. Qxd8+ {[%emt 0:01:48]} Kxd8 {[%emt 0:00:30]} 10. Bf3 {[%emt 0:00:05]} e4 {[%emt 0:02:30]} 11. Be2 $14 {[%emt 0:00:15]} Nc6 {[%emt 0:01:31]} 12. a3 {[%emt 0:06:10]} Bd6 {[%emt 0:02:01]} 13. Bg5 {[%emt 0:04:08]} Be6 {[%emt 0:02:58]} 14. N1d2 {[%emt 0:03:15]} Bxb3 {[%emt 0:05:21]} 15. Nxb3 {[%emt 0:00:43]} Kc7 {[%emt 0:00:27]} 16. O-O-O {[%emt 0:01:58]} Rhe8 {[%emt 0:01:23]} 17. h3 {[%emt 0:03:26]} h6 {[%emt 0:03:20]} 18. Be3 {[%emt 0:01:16]} Rad8 {[%emt 0:02:10]} 19. Rd2 {[%emt 0:03:16]} g5 {[%emt 0:07:04]} 20. Nd4 {[%emt 0:06:44]} Bf4 {[%emt 0:13:41]} 21. Nxc6 {[%emt 0:08:13]} Kxc6 {[%emt 0:05:32]} 22. c4 {[%emt 0:03:44]} Rxd2 {[%emt 0:00:57]} 23. Kxd2 {[%emt 0:00:14]} Rd8+ {[%emt 0:00:10]} 24. Kc3 {[%emt 0:02:10]} Bxe3 {[%emt 0:00:29]} 25. fxe3 {[%emt 0:00:03]} Ne8 {[%emt 0:08:26]} 26. Rf1 {[%emt 0:03:08]} Rd7 {[%emt 0:06:06]} 27. b4 {[%emt 0:02:51]} b6 {[%emt 0:07:30]} 28. g4 {[%emt 0:02:08]} f6 {[%emt 0:02:31]} 29. Rd1 {[%emt 0:01:31]} Re7 {[%emt 0:02:13]} 30. Rd5 {[%emt 0:05:00]} Re5 {[%emt 0:00:43]} 31. Kd4 {[%emt 0:10:07]} Re7 {[%emt 0:01:02]} 32. c5 {[%emt 0:03:16]} bxc5+ {[%emt 0:01:28]} 33. Rxc5+ {[%emt 0:00:22]} Kb6 {[%emt 0:00:11]} 34. Bc4 {[%emt 0:02:27]} Nc7 {[%emt 0:00:54]} 35. a4 {[%emt 0:01:31]} Rd7+ {[%emt 0:04:59]} 36. Kxe4 {[%emt 0:00:44]} Re7+ {[%emt 0:00:37]} 37. Kd4 {[%emt 0:01:46]} Rd7+ {[%emt 0:01:54]} 38. Ke4 {[%emt 0:00:59]} Re7+ {[%emt 0:00:08]} 39. Kf3 {[%emt 0:00:07]} Rd7 {[%emt 0:01:13]} 40. Rf5 {[%emt 0:00:00]} Rd6 {[%emt 0:00:42]} 41. Ke4 {[%emt 0:03:11]} Kc6 {[%emt 0:01:57]} 42. Rf2 {[%emt 0:01:59]} Kd7 {[%emt 0:00:31]} 43. b5 {[%emt 0:00:47]} a5 {[%emt 0:01:28]} 44. Rf5 {[%emt 0:03:35]} Na8 {[%emt 0:03:06]} 45. Rd5 {[%emt 0:02:58]} Nb6 {[%emt 0:00:05]} 46. Rxd6+ {[%emt 0:00:23]} Kxd6 {[%emt 0:00:01]} 47. Bb3 {[%emt 0:00:14]} Nd7 {[%emt 0:00:54]} 48. Kf5 {[%emt 0:01:01]} Nc5 {[%emt 0:04:59]} 49. Bc2 {[%emt 0:00:14]} Nd7 {[%emt 0:00:01]} 50. Bd1 {[%emt 0:00:49]} Ke7 {[%emt 0:00:34]} 51. Bb3 {[%emt 0:01:57]} Nc5 {[%emt 0:00:53]} 52. Bc2 {[%emt 0:00:05]} Nd7 {[%emt 0:00:04]} 53. Kg6 {[%emt 0:00:26]} Nb6 {[%emt 0:00:56]} 54. Kxh6 {[%emt 0:01:41]} Nc4 {[%emt 0:00:18]} 55. e4 {[%emt 0:02:16]} Kd6 {[%emt 0:01:27]} 56. Kg6 {[%emt 0:01:38]} Ke5 {[%emt 0:00:01]} 57. Kf7 {[%emt 0:00:17]} Nb6 {[%emt 0:00:20]} 58. Ke7 {[%emt 0:00:20]} Nc4 {[%emt 0:02:31]} 59. Kd7 {[%emt 0:01:11]} Nd6 {[%emt 0:02:23]} 60. b6 {[%emt 0:02:30]} Nb7 {[%emt 0:00:09]} 61. Kc7 {[%emt 0:01:44] Kxe4} 1-0